[Event "Titled Tuesday Blitz August 16 Late 2022"]
[White "Winkels, Marcel"]
[Black "Adewumi, Tanitoluwa"]
[WhiteFideId "1003887"]
[BlackFideId "30966396"]
[WhiteElo "1900"]
[BlackElo "2302"]
[Result "0-1"]
[Round "01"]
[TimeControl "180+1"]
[Date "2022.08.18"]
[WhiteClock "0:00:00"]
[BlackClock "0:00:00"]

1. e4 {[%clk 0:00:00]}  c5 {[%clk 0:00:00]} 2. Nf3 {[%clk 0:00:00]}  e6 {[%clk 0:00:00]} 3. d4 {[%clk 0:00:00]}  cxd4 {[%clk 0:00:00]} 4. Nxd4 {[%clk 0:00:00]}  Nc6 {[%clk 0:00:00]} 5. Nc3 {[%clk 0:00:00]}  Qc7 {[%clk 0:00:00]} 6. g3 {[%clk 0:00:00]}  a6 {[%clk 0:00:00]} 7. Bg2 {[%clk 0:00:00]}  d6 {[%clk 0:00:00]} 8. O-O {[%clk 0:00:00]}  Be7 {[%clk 0:00:00]} 9. Re1 {[%clk 0:00:00]}  Bd7 {[%clk 0:00:00]} 10. h3 {[%clk 0:00:00]}  Nf6 {[%clk 0:00:00]} 11. Be3 {[%clk 0:00:00]}  Ne5 {[%clk 0:00:00]} 12. Bg5 {[%clk 0:00:00]}  O-O {[%clk 0:00:00]} 13. Rb1 {[%clk 0:00:00]}  Nc4 {[%clk 0:00:00]} 14. Qd3 {[%clk 0:00:00]}  b5 {[%clk 0:00:00]} 15. b3 {[%clk 0:00:00]}  Ne5 {[%clk 0:00:00]} 16. Qd2 {[%clk 0:00:00]}  Rac8 {[%clk 0:00:00]} 17. Nce2 {[%clk 0:00:00]}  h6 {[%clk 0:00:00]} 18. Bxf6 {[%clk 0:00:00]}  Bxf6 {[%clk 0:00:00]} 19. f4 {[%clk 0:00:00]}  Nc6 {[%clk 0:00:00]} 20. Rbc1 {[%clk 0:00:00]}  Nxd4 {[%clk 0:00:00]} 21. Nxd4 {[%clk 0:00:00]}  Qc3 {[%clk 0:00:00]} 22. Qxc3 {[%clk 0:00:00]}  Rxc3 {[%clk 0:00:00]} 23. Nf3 {[%clk 0:00:00]}  Rfc8 {[%clk 0:00:00]} 24. Re2 {[%clk 0:00:00]}  Be7 {[%clk 0:00:00]} 25. g4 {[%clk 0:00:00]}  a5 {[%clk 0:00:00]} 26. Ne1 {[%clk 0:00:00]}  b4 {[%clk 0:00:00]} 27. Rd1 {[%clk 0:00:00]}  Bb5 {[%clk 0:00:00]} 28. Rf2 {[%clk 0:00:00]}  Bh4 {[%clk 0:00:00]} 29. Rfd2 {[%clk 0:00:00]}  Bg3 {[%clk 0:00:00]} 30. Rxd6 {[%clk 0:00:00]}  Bxf4 {[%clk 0:00:00]} 31. Rd8+ {[%clk 0:00:00]}  Rxd8 {[%clk 0:00:00]} 32. Rxd8+ {[%clk 0:00:00]}  Kh7 {[%clk 0:00:00]} 33. Kf2 {[%clk 0:00:00]}  Bg3+ {[%clk 0:00:00]} 34. Kg1 {[%clk 0:00:00]}  Bxe1 {[%clk 0:00:00]} 0-1


[Site "https://www.chess.com"]

[Event "Titled Tuesday Blitz August 16 Late 2022"]
[White "Zenin, Dmitry"]
[Black "Melikyan, Gnel"]
[WhiteFideId "4127897"]
[BlackFideId "54109990"]
[WhiteElo "2215"]
[BlackElo "1772"]
[Result "0-1"]
[Round "01"]
[TimeControl "180+1"]
[Date "2022.08.18"]
[WhiteClock "0:00:00"]
[BlackClock "0:00:00"]

1. d4 {[%clk 0:00:00]}  Nf6 {[%clk 0:00:00]} 2. c4 {[%clk 0:00:00]}  g6 {[%clk 0:00:00]} 3. Nc3 {[%clk 0:00:00]}  Bg7 {[%clk 0:00:00]} 4. e4 {[%clk 0:00:00]}  d6 {[%clk 0:00:00]} 5. Nf3 {[%clk 0:00:00]}  O-O {[%clk 0:00:00]} 6. Be2 {[%clk 0:00:00]}  e5 {[%clk 0:00:00]} 7. O-O {[%clk 0:00:00]}  Nc6 {[%clk 0:00:00]} 8. d5 {[%clk 0:00:00]}  Ne7 {[%clk 0:00:00]} 9. Ne1 {[%clk 0:00:00]}  Nd7 {[%clk 0:00:00]} 10. Nd3 {[%clk 0:00:00]}  f5 {[%clk 0:00:00]} 11. Bd2 {[%clk 0:00:00]}  Nf6 {[%clk 0:00:00]} 12. f3 {[%clk 0:00:00]}  f4 {[%clk 0:00:00]} 13. c5 {[%clk 0:00:00]}  Rf7 {[%clk 0:00:00]} 14. cxd6 {[%clk 0:00:00]}  cxd6 {[%clk 0:00:00]} 15. Nf2 {[%clk 0:00:00]}  g5 {[%clk 0:00:00]} 16. Qc2 {[%clk 0:00:00]}  Ng6 {[%clk 0:00:00]} 17. Rfc1 {[%clk 0:00:00]}  Ne8 {[%clk 0:00:00]} 18. a4 {[%clk 0:00:00]}  h5 {[%clk 0:00:00]} 19. h3 {[%clk 0:00:00]}  Bf8 {[%clk 0:00:00]} 20. Nb5 {[%clk 0:00:00]}  Rg7 {[%clk 0:00:00]} 21. Qd1 {[%clk 0:00:00]}  Nh4 {[%clk 0:00:00]} 22. Rc3 {[%clk 0:00:00]}  a6 {[%clk 0:00:00]} 23. Na3 {[%clk 0:00:00]}  Nf6 {[%clk 0:00:00]} 24. Nc4 {[%clk 0:00:00]}  Bd7 {[%clk 0:00:00]} 25. a5 {[%clk 0:00:00]}  Bb5 {[%clk 0:00:00]} 26. Be1 {[%clk 0:00:00]}  Nd7 {[%clk 0:00:00]} 27. b4 {[%clk 0:00:00]}  Qf6 {[%clk 0:00:00]} 28. Rac1 {[%clk 0:00:00]}  Qg6 {[%clk 0:00:00]} 29. Na3 {[%clk 0:00:00]}  Bxe2 {[%clk 0:00:00]} 30. Qxe2 {[%clk 0:00:00]}  Nf6 {[%clk 0:00:00]} 31. Rc7 {[%clk 0:00:00]}  Be7 {[%clk 0:00:00]} 32. Rxb7 {[%clk 0:00:00]}  g4 {[%clk 0:00:00]} 33. fxg4 {[%clk 0:00:00]}  hxg4 {[%clk 0:00:00]} 34. hxg4 {[%clk 0:00:00]}  f3 {[%clk 0:00:00]} 35. gxf3 {[%clk 0:00:00]}  Nh5 {[%clk 0:00:00]} 36. Nh3 {[%clk 0:00:00]}  Nxf3+ {[%clk 0:00:00]} 37. Qxf3 {[%clk 0:00:00]}  Rf8 {[%clk 0:00:00]} 38. Qg2 {[%clk 0:00:00]}  Nf4 {[%clk 0:00:00]} 39. Nxf4 {[%clk 0:00:00]}  Rxf4 {[%clk 0:00:00]} 40. Rc8+ {[%clk 0:00:00]}  Kf7 {[%clk 0:00:00]} 41. Bh4 {[%clk 0:00:00]}  Rf6 {[%clk 0:00:00]} 42. Rxe7+ {[%clk 0:00:00]}  Kxe7 {[%clk 0:00:00]} 43. Rc7+ {[%clk 0:00:00]}  Ke8 {[%clk 0:00:00]} 44. Rxg7 {[%clk 0:00:00]}  Qxg7 {[%clk 0:00:00]} 45. Bxf6 {[%clk 0:00:00]}  Qxf6 {[%clk 0:00:00]} 46. Qg3 {[%clk 0:00:00]}  Qg5 {[%clk 0:00:00]} 47. Nc2 {[%clk 0:00:00]}  Qd2 {[%clk 0:00:00]} 48. Qf2 {[%clk 0:00:00]}  Qc1+ {[%clk 0:00:00]} 49. Kg2 {[%clk 0:00:00]}  Qg5 {[%clk 0:00:00]} 50. Kg3 {[%clk 0:00:00]}  Qc1 {[%clk 0:00:00]} 51. Ne3 {[%clk 0:00:00]}  Qh1 {[%clk 0:00:00]} 52. g5 {[%clk 0:00:00]}  Qh5 {[%clk 0:00:00]} 53. Qf5 {[%clk 0:00:00]}  Qh1 {[%clk 0:00:00]} 54. Qe6+ {[%clk 0:00:00]}  Kf8 {[%clk 0:00:00]} 0-1


[Site "https://www.chess.com"]

[Event "Titled Tuesday Blitz August 16 Late 2022"]
[White "Abdyzhapar, Asylbek"]
[Black "Pichot, Alan"]
[WhiteFideId "13800337"]
[BlackFideId "110973"]
[WhiteElo "2323"]
[BlackElo "2578"]
[Result "0-1"]
[Round "02"]
[TimeControl "180+1"]
[Date "2022.08.16"]
[WhiteClock "0:01:00"]
[BlackClock "0:00:07"]

1. d4 {[%clk 0:03:00]}  Nf6 {[%clk 0:02:59]} 2. c4 {[%clk 0:03:00]}  e6 {[%clk 0:03:00]} 3. Nf3 {[%clk 0:03:00]}  d5 {[%clk 0:03:00]} 4. Nc3 {[%clk 0:02:59]}  Bb4 {[%clk 0:03:00]} 5. Bg5 {[%clk 0:02:57]}  h6 {[%clk 0:02:57]} 6. Bh4 {[%clk 0:02:57]}  dxc4 {[%clk 0:02:53]} 7. e3 {[%clk 0:02:45]}  b5 {[%clk 0:02:50]} 8. a4 {[%clk 0:02:45]}  c6 {[%clk 0:02:49]} 9. Be2 {[%clk 0:02:45]}  g5 {[%clk 0:02:29]} 10. Bg3 {[%clk 0:02:44]}  Ne4 {[%clk 0:02:29]} 11. Qc2 {[%clk 0:02:44]}  Nxg3 {[%clk 0:02:21]} 12. hxg3 {[%clk 0:02:44]}  Nd7 {[%clk 0:02:22]} 13. O-O {[%clk 0:02:39]}  Qb6 {[%clk 0:02:04]} 14. b3 {[%clk 0:02:37]}  cxb3 {[%clk 0:01:41]} 15. Qxb3 {[%clk 0:02:37]}  a5 {[%clk 0:01:38]} 16. Rfc1 {[%clk 0:02:28]}  Bb7 {[%clk 0:01:36]} 17. axb5 {[%clk 0:02:25]}  O-O {[%clk 0:01:32]} 18. Na4 {[%clk 0:02:23]}  Qc7 {[%clk 0:01:31]} 19. bxc6 {[%clk 0:02:22]}  Bxc6 {[%clk 0:01:29]} 20. Bb5 {[%clk 0:02:21]}  Nb8 {[%clk 0:01:06]} 21. Ne5 {[%clk 0:02:20]}  Bd5 {[%clk 0:01:06]} 22. Rxc7 {[%clk 0:01:55]}  Bxb3 {[%clk 0:01:06]} 23. Nb6 {[%clk 0:01:55]}  Na6 {[%clk 0:00:28]} 24. Nxa8 {[%clk 0:01:54]}  Nxc7 {[%clk 0:00:27]} 25. Nxc7 {[%clk 0:01:54]}  Rc8 {[%clk 0:00:22]} 26. Na6 {[%clk 0:01:54]}  Bc3 {[%clk 0:00:17]} 27. Ra3 {[%clk 0:01:53]}  Bc2 {[%clk 0:00:17]} 28. Nc5 {[%clk 0:01:52]}  Bb4 {[%clk 0:00:16]} 29. Ra2 {[%clk 0:01:51]}  Bb1 {[%clk 0:00:16]} 30. Ra1 {[%clk 0:01:49]}  Bc2 {[%clk 0:00:16]} 31. Bd3 {[%clk 0:01:47]}  Bxc5 {[%clk 0:00:15]} 32. Bxc2 {[%clk 0:01:44]}  Bb4 {[%clk 0:00:13]} 33. Ba4 {[%clk 0:01:42]}  Rc3 {[%clk 0:00:11]} 34. Ra2 {[%clk 0:01:40]}  f6 {[%clk 0:00:10]} 35. Nc6 {[%clk 0:01:39]}  Bd6 {[%clk 0:00:09]} 36. Rc2 {[%clk 0:01:38]}  Ra3 {[%clk 0:00:09]} 37. Rc4 {[%clk 0:01:38]}  h5 {[%clk 0:00:08]} 38. e4 {[%clk 0:01:38]}  h4 {[%clk 0:00:08]} 39. e5 {[%clk 0:01:38]}  hxg3 {[%clk 0:00:08]} 40. fxg3 {[%clk 0:01:37]}  fxe5 {[%clk 0:00:08]} 41. dxe5 {[%clk 0:01:38]}  Bb4 {[%clk 0:00:09]} 42. Bc2 {[%clk 0:01:30]}  Be1 {[%clk 0:00:09]} 43. Rg4 {[%clk 0:01:21]}  Bxg3 {[%clk 0:00:09]} 44. Rxg5+ {[%clk 0:01:20]}  Kf7 {[%clk 0:00:09]} 45. Kf1 {[%clk 0:01:19]}  Re3 {[%clk 0:00:09]} 46. Bg6+ {[%clk 0:01:14]}  Kf8 {[%clk 0:00:07]} 47. Rxg3 {[%clk 0:01:11]}  Rxg3 {[%clk 0:00:07]} 48. Be4 {[%clk 0:01:09]}  a4 {[%clk 0:00:07]} 49. Bf3 {[%clk 0:01:09]}  a3 {[%clk 0:00:06]} 50. Nb4 {[%clk 0:01:09]}  Rg5 {[%clk 0:00:05]} 51. Ke2 {[%clk 0:01:05]}  Rxe5+ {[%clk 0:00:05]} 52. Kd3 {[%clk 0:01:05]}  Rb5 {[%clk 0:00:06]} 53. Nc2 {[%clk 0:00:59]}  a2 {[%clk 0:00:05]} 54. Na1 {[%clk 0:00:58]}  Rb1 {[%clk 0:00:05]} 55. Kc3 {[%clk 0:00:59]}  Rxa1 {[%clk 0:00:02]} 56. Kb2 {[%clk 0:01:00]}  Re1 {[%clk 0:00:03]} 57. Kxa2 {[%clk 0:01:01]}  Ke7 {[%clk 0:00:03]} 58. Kb2 {[%clk 0:01:01]}  Kf6 {[%clk 0:00:04]} 59. Kc2 {[%clk 0:01:01]}  e5 {[%clk 0:00:04]} 60. Kd2 {[%clk 0:01:02]}  Ra1 {[%clk 0:00:04]} 61. Ke3 {[%clk 0:01:03]}  Ra4 {[%clk 0:00:05]} 62. Be4 {[%clk 0:01:03]}  Kg5 {[%clk 0:00:04]} 63. Bd5 {[%clk 0:01:03]}  Kg4 {[%clk 0:00:03]} 64. Bf3+ {[%clk 0:01:02]}  Kg3 {[%clk 0:00:04]} 65. Bd5 {[%clk 0:01:03]}  Rd4 {[%clk 0:00:04]} 66. Be4 {[%clk 0:01:03]}  Ra4 {[%clk 0:00:03]} 67. Bd5 {[%clk 0:01:03]}  Kg4 {[%clk 0:00:02]} 68. Bf3+ {[%clk 0:01:03]}  Kf5 {[%clk 0:00:03]} 69. Bd1 {[%clk 0:01:02]}  Rb4 {[%clk 0:00:03]} 70. Bc2+ {[%clk 0:01:01]}  e4 {[%clk 0:00:03]} 71. g4+ {[%clk 0:01:01]}  Ke5 {[%clk 0:00:04]} 72. g5 {[%clk 0:01:01]}  Rc4 {[%clk 0:00:04]} 73. Bb1 {[%clk 0:01:00]}  Rc3+ {[%clk 0:00:05]} 74. Kd2 {[%clk 0:01:00]}  Rg3 {[%clk 0:00:05]} 75. g6 {[%clk 0:00:58]}  Rxg6 {[%clk 0:00:05]} 76. Ke2 {[%clk 0:00:58]}  Rg1 {[%clk 0:00:05]} 77. Bc2 {[%clk 0:00:58]}  Rg2+ {[%clk 0:00:05]} 78. Kd1 {[%clk 0:00:58]}  Rxc2 {[%clk 0:00:06]} 79. Kxc2 {[%clk 0:00:58]}  Kf4 {[%clk 0:00:06]} 80. Kd1 {[%clk 0:00:58]}  Kf3 {[%clk 0:00:05]} 81. Ke1 {[%clk 0:00:59]}  Ke3 {[%clk 0:00:06]} 82. Kd1 {[%clk 0:00:59]}  Kf2 {[%clk 0:00:06]} 83. Kd2 {[%clk 0:00:59]}  e3+ {[%clk 0:00:06]} 84. Kd3 {[%clk 0:01:00]}  e2 {[%clk 0:00:07]} 0-1


[Site "https://www.chess.com"]

[Event "Titled Tuesday Blitz August 16 Late 2022"]
[White "Adury, Anant"]
[Black "Mcconnell, Sullivan"]
[WhiteFideId "30964687"]
[BlackFideId "30934885"]
[WhiteElo "2028"]
[BlackElo "1985"]
[Result "0-1"]
[Round "02"]
[TimeControl "180+1"]
[Date "2022.08.18"]
[WhiteClock "0:00:00"]
[BlackClock "0:00:00"]

1. d4 {[%clk 0:00:00]}  e6 {[%clk 0:00:00]} 2. c4 {[%clk 0:00:00]}  b6 {[%clk 0:00:00]} 3. Nc3 {[%clk 0:00:00]}  Bb4 {[%clk 0:00:00]} 4. e4 {[%clk 0:00:00]}  Bb7 {[%clk 0:00:00]} 5. Bd3 {[%clk 0:00:00]}  f5 {[%clk 0:00:00]} 6. Qh5+ {[%clk 0:00:00]}  g6 {[%clk 0:00:00]} 7. Qe2 {[%clk 0:00:00]}  Nf6 {[%clk 0:00:00]} 8. f3 {[%clk 0:00:00]}  Nc6 {[%clk 0:00:00]} 9. Be3 {[%clk 0:00:00]}  f4 {[%clk 0:00:00]} 10. Bf2 {[%clk 0:00:00]}  e5 {[%clk 0:00:00]} 11. a3 {[%clk 0:00:00]}  Bxc3+ {[%clk 0:00:00]} 12. bxc3 {[%clk 0:00:00]}  d6 {[%clk 0:00:00]} 13. Qb2 {[%clk 0:00:00]}  Na5 {[%clk 0:00:00]} 14. Qb5+ {[%clk 0:00:00]}  c6 {[%clk 0:00:00]} 15. Qa4 {[%clk 0:00:00]}  O-O {[%clk 0:00:00]} 16. Ne2 {[%clk 0:00:00]}  c5 {[%clk 0:00:00]} 17. O-O {[%clk 0:00:00]}  Qe8 {[%clk 0:00:00]} 18. Qb5 {[%clk 0:00:00]}  Qc8 {[%clk 0:00:00]} 19. Nc1 {[%clk 0:00:00]}  Ba6 {[%clk 0:00:00]} 20. Qb2 {[%clk 0:00:00]}  Qe6 {[%clk 0:00:00]} 21. d5 {[%clk 0:00:00]}  Qe8 {[%clk 0:00:00]} 22. Qe2 {[%clk 0:00:00]}  Qa4 {[%clk 0:00:00]} 23. g4 {[%clk 0:00:00]}  Bxc4 {[%clk 0:00:00]} 24. Bxc4 {[%clk 0:00:00]}  Qxc4 {[%clk 0:00:00]} 25. Qxc4 {[%clk 0:00:00]}  Nxc4 {[%clk 0:00:00]} 26. a4 {[%clk 0:00:00]}  Nd2 {[%clk 0:00:00]} 0-1


[Site "https://www.chess.com"]

[Event "Titled Tuesday Blitz August 16 Late 2022"]
[White "Alexikov, Alexander"]
[Black "Fus, Jakub"]
[WhiteFideId "14103958"]
[BlackFideId "1193023"]
[WhiteElo "2253"]
[BlackElo "2220"]
[Result "0-1"]
[Round "02"]
[TimeControl "180+1"]
[Date "2022.08.18"]
[WhiteClock "0:00:00"]
[BlackClock "0:00:00"]

1. e4 {[%clk 0:00:00]}  c5 {[%clk 0:00:00]} 2. Nf3 {[%clk 0:00:00]}  d6 {[%clk 0:00:00]} 3. d4 {[%clk 0:00:00]}  cxd4 {[%clk 0:00:00]} 4. Nxd4 {[%clk 0:00:00]}  Nf6 {[%clk 0:00:00]} 5. Nc3 {[%clk 0:00:00]}  a6 {[%clk 0:00:00]} 6. Be2 {[%clk 0:00:00]}  e6 {[%clk 0:00:00]} 7. O-O {[%clk 0:00:00]}  Be7 {[%clk 0:00:00]} 8. f4 {[%clk 0:00:00]}  Qc7 {[%clk 0:00:00]} 9. Kh1 {[%clk 0:00:00]}  Nc6 {[%clk 0:00:00]} 10. Be3 {[%clk 0:00:00]}  O-O {[%clk 0:00:00]} 11. Qe1 {[%clk 0:00:00]}  Nxd4 {[%clk 0:00:00]} 12. Bxd4 {[%clk 0:00:00]}  b5 {[%clk 0:00:00]} 13. a3 {[%clk 0:00:00]}  Bb7 {[%clk 0:00:00]} 14. Bd3 {[%clk 0:00:00]}  e5 {[%clk 0:00:00]} 15. fxe5 {[%clk 0:00:00]}  dxe5 {[%clk 0:00:00]} 16. Qg3 {[%clk 0:00:00]}  Nd7 {[%clk 0:00:00]} 17. Rf5 {[%clk 0:00:00]}  f6 {[%clk 0:00:00]} 18. Raf1 {[%clk 0:00:00]}  Bc5 {[%clk 0:00:00]} 19. Be3 {[%clk 0:00:00]}  Bxe3 {[%clk 0:00:00]} 20. Qxe3 {[%clk 0:00:00]}  Nc5 {[%clk 0:00:00]} 21. Qg3 {[%clk 0:00:00]}  Kh8 {[%clk 0:00:00]} 22. Rh5 {[%clk 0:00:00]}  Ne6 {[%clk 0:00:00]} 23. Nd5 {[%clk 0:00:00]}  Qf7 {[%clk 0:00:00]} 24. Rxe5 {[%clk 0:00:00]}  Rae8 {[%clk 0:00:00]} 25. Ref5 {[%clk 0:00:00]}  Qg6 {[%clk 0:00:00]} 26. Qf2 {[%clk 0:00:00]}  Ng5 {[%clk 0:00:00]} 27. Nc3 {[%clk 0:00:00]}  Nxe4 {[%clk 0:00:00]} 28. Nxe4 {[%clk 0:00:00]}  Bxe4 {[%clk 0:00:00]} 29. Bxe4 {[%clk 0:00:00]}  Rxe4 {[%clk 0:00:00]} 30. Rc5 {[%clk 0:00:00]}  Rfe8 {[%clk 0:00:00]} 31. h3 {[%clk 0:00:00]}  Re2 {[%clk 0:00:00]} 32. Qf3 {[%clk 0:00:00]}  Rxc2 {[%clk 0:00:00]} 33. Rxc2 {[%clk 0:00:00]}  Qxc2 {[%clk 0:00:00]} 34. Rf2 {[%clk 0:00:00]}  Re1+ {[%clk 0:00:00]} 35. Kh2 {[%clk 0:00:00]}  Qc7+ {[%clk 0:00:00]} 36. g3 {[%clk 0:00:00]}  h6 {[%clk 0:00:00]} 37. Qa8+ {[%clk 0:00:00]}  Kh7 {[%clk 0:00:00]} 38. Qxa6 {[%clk 0:00:00]}  Qc5 {[%clk 0:00:00]} 39. Rg2 {[%clk 0:00:00]}  Qc1 {[%clk 0:00:00]} 0-1


[Site "https://www.chess.com"]

[Event "Titled Tuesday Blitz August 16 Late 2022"]
[White "Ambartsumova, Karina"]
[Black "Krzyzanowski, Marcin"]
[WhiteFideId "4166299"]
[BlackFideId "1132199"]
[WhiteElo "2262"]
[BlackElo "2396"]
[Result "0-1"]
[Round "02"]
[TimeControl "180+1"]
[Date "2022.08.16"]
[WhiteClock "0:00:14"]
[BlackClock "0:01:39"]

1. Nf3 {[%clk 0:03:00]}  d5 {[%clk 0:02:59]} 2. d4 {[%clk 0:02:59]}  Nf6 {[%clk 0:02:59]} 3. c4 {[%clk 0:03:00]}  e6 {[%clk 0:02:59]} 4. Nc3 {[%clk 0:02:59]}  c5 {[%clk 0:02:58]} 5. cxd5 {[%clk 0:02:59]}  Nxd5 {[%clk 0:02:58]} 6. e4 {[%clk 0:02:53]}  Nxc3 {[%clk 0:02:58]} 7. bxc3 {[%clk 0:02:54]}  cxd4 {[%clk 0:02:59]} 8. cxd4 {[%clk 0:02:55]}  Bb4+ {[%clk 0:02:59]} 9. Bd2 {[%clk 0:02:54]}  Bxd2+ {[%clk 0:03:00]} 10. Qxd2 {[%clk 0:02:55]}  O-O {[%clk 0:03:00]} 11. Be2 {[%clk 0:02:55]}  b6 {[%clk 0:03:00]} 12. O-O {[%clk 0:02:52]}  Bb7 {[%clk 0:03:00]} 13. Qe3 {[%clk 0:02:52]}  Nc6 {[%clk 0:02:57]} 14. Rfd1 {[%clk 0:02:49]}  Re8 {[%clk 0:02:56]} 15. Rac1 {[%clk 0:02:48]}  Rc8 {[%clk 0:02:56]} 16. a3 {[%clk 0:02:30]}  Qf6 {[%clk 0:02:50]} 17. e5 {[%clk 0:02:19]}  Qe7 {[%clk 0:02:47]} 18. Bd3 {[%clk 0:02:19]}  Na5 {[%clk 0:02:44]} 19. Ng5 {[%clk 0:02:06]}  h6 {[%clk 0:02:43]} 20. Ne4 {[%clk 0:02:00]}  Bxe4 {[%clk 0:02:39]} 21. Qxe4 {[%clk 0:01:58]}  g6 {[%clk 0:02:39]} 22. h4 {[%clk 0:01:58]}  h5 {[%clk 0:02:28]} 23. a4 {[%clk 0:01:40]}  Nb3 {[%clk 0:02:27]} 24. Rxc8 {[%clk 0:01:22]}  Rxc8 {[%clk 0:02:28]} 25. Bb5 {[%clk 0:01:21]}  Rd8 {[%clk 0:02:26]} 26. d5 {[%clk 0:01:14]}  Nc5 {[%clk 0:02:21]} 27. Qf3 {[%clk 0:01:12]}  exd5 {[%clk 0:02:17]} 28. Rxd5 {[%clk 0:01:12]}  Qxh4 {[%clk 0:02:17]} 29. g3 {[%clk 0:01:03]}  Qe7 {[%clk 0:02:15]} 30. Rxd8+ {[%clk 0:00:59]}  Qxd8 {[%clk 0:02:16]} 31. Bc4 {[%clk 0:01:00]}  Qe7 {[%clk 0:02:16]} 32. Qa8+ {[%clk 0:00:50]}  Kg7 {[%clk 0:02:15]} 33. Bb5 {[%clk 0:00:24]}  h4 {[%clk 0:02:13]} 34. gxh4 {[%clk 0:00:23]}  Qxe5 {[%clk 0:02:07]} 35. Qxa7 {[%clk 0:00:21]}  Qe1+ {[%clk 0:02:06]} 36. Kg2 {[%clk 0:00:21]}  Qe4+ {[%clk 0:02:05]} 37. Kg1 {[%clk 0:00:21]}  Qg4+ {[%clk 0:02:05]} 38. Kf1 {[%clk 0:00:21]}  Qh3+ {[%clk 0:02:03]} 39. Kg1 {[%clk 0:00:20]}  Qg4+ {[%clk 0:01:51]} 40. Kf1 {[%clk 0:00:20]}  Qe6 {[%clk 0:01:44]} 41. a5 {[%clk 0:00:20]}  Ne4 {[%clk 0:01:38]} 42. Qxb6 {[%clk 0:00:19]}  Nd2+ {[%clk 0:01:38]} 43. Kg2 {[%clk 0:00:16]}  Qg4+ {[%clk 0:01:38]} 44. Kh1 {[%clk 0:00:15]}  Qh3+ {[%clk 0:01:38]} 45. Kg1 {[%clk 0:00:14]}  Nf3# {[%clk 0:01:39]} 0-1


[Site "https://www.chess.com"]

[Event "Titled Tuesday Blitz August 16 Late 2022"]
[White "Andreikin, Dmitry"]
[Black "Goryachkina, Aleksandra"]
[WhiteFideId "4158814"]
[BlackFideId "4147103"]
[WhiteElo "2736"]
[BlackElo "2426"]
[Result "1-0"]
[Round "02"]
[TimeControl "180+1"]
[Date "2022.08.16"]
[WhiteClock "0:01:18"]
[BlackClock "0:00:01"]

1. d4 {[%clk 0:03:00]}  d5 {[%clk 0:02:58]} 2. c4 {[%clk 0:03:01]}  e6 {[%clk 0:02:58]} 3. Nf3 {[%clk 0:03:01]}  Nf6 {[%clk 0:02:58]} 4. g3 {[%clk 0:03:01]}  Be7 {[%clk 0:02:53]} 5. Bg2 {[%clk 0:03:01]}  O-O {[%clk 0:02:53]} 6. O-O {[%clk 0:03:02]}  dxc4 {[%clk 0:02:53]} 7. Qc2 {[%clk 0:03:02]}  a6 {[%clk 0:02:27]} 8. a4 {[%clk 0:03:02]}  Bd7 {[%clk 0:02:17]} 9. Qxc4 {[%clk 0:03:02]}  Bc6 {[%clk 0:02:15]} 10. Bf4 {[%clk 0:03:02]}  Nbd7 {[%clk 0:02:07]} 11. Qc1 {[%clk 0:03:02]}  Bd6 {[%clk 0:01:53]} 12. Rd1 {[%clk 0:03:02]}  Qe7 {[%clk 0:01:49]} 13. Nc3 {[%clk 0:02:57]}  e5 {[%clk 0:01:08]} 14. Nxe5 {[%clk 0:02:45]}  Nxe5 {[%clk 0:00:41]} 15. dxe5 {[%clk 0:02:45]}  Bxe5 {[%clk 0:00:41]} 16. Bxc6 {[%clk 0:02:46]}  bxc6 {[%clk 0:00:39]} 17. Qe3 {[%clk 0:02:44]}  Rfe8 {[%clk 0:00:36]} 18. Qxe5 {[%clk 0:02:39]}  Qxe5 {[%clk 0:00:37]} 19. Bxe5 {[%clk 0:02:39]}  Rxe5 {[%clk 0:00:37]} 20. Rd4 {[%clk 0:02:31]}  Rb8 {[%clk 0:00:35]} 21. f4 {[%clk 0:02:17]}  Ree8 {[%clk 0:00:27]} 22. b4 {[%clk 0:02:16]}  Nd5 {[%clk 0:00:24]} 23. Nxd5 {[%clk 0:02:10]}  cxd5 {[%clk 0:00:25]} 24. Kf2 {[%clk 0:02:10]}  Re4 {[%clk 0:00:18]} 25. Rxe4 {[%clk 0:01:35]}  dxe4 {[%clk 0:00:18]} 26. Rd1 {[%clk 0:01:36]}  f5 {[%clk 0:00:16]} 27. Rd4 {[%clk 0:01:34]}  Kf7 {[%clk 0:00:07]} 28. Rc4 {[%clk 0:01:31]}  Rb7 {[%clk 0:00:06]} 29. Ke3 {[%clk 0:01:30]}  Ke7 {[%clk 0:00:04]} 30. Kd4 {[%clk 0:01:20]}  Kd6 {[%clk 0:00:04]} 31. Kc3 {[%clk 0:01:20]}  g6 {[%clk 0:00:04]} 32. Rd4+ {[%clk 0:01:19]}  Ke7 {[%clk 0:00:04]} 33. Kc4 {[%clk 0:01:18]}  Rb6 {[%clk 0:00:01]} 34. Kc5 {[%clk 0:01:18]} 1-0


[Site "https://www.chess.com"]

[Event "Titled Tuesday Blitz August 16 Late 2022"]
[White "Atanasov, Anthony"]
[Black "Rasulov, Vugar"]
[WhiteFideId "2623897"]
[BlackFideId "13402390"]
[WhiteElo "1928"]
[BlackElo "2509"]
[Result "0-1"]
[Round "02"]
[TimeControl "180+1"]
[Date "2022.08.16"]
[WhiteClock "0:00:09"]
[BlackClock "0:01:19"]

1. e4 {[%clk 0:02:59]}  e5 {[%clk 0:02:59]} 2. Nf3 {[%clk 0:02:58]}  Nc6 {[%clk 0:03:00]} 3. Nc3 {[%clk 0:02:59]}  Nf6 {[%clk 0:02:59]} 4. a3 {[%clk 0:02:58]}  g6 {[%clk 0:02:56]} 5. Bc4 {[%clk 0:02:58]}  Bg7 {[%clk 0:02:56]} 6. d3 {[%clk 0:02:58]}  O-O {[%clk 0:02:56]} 7. h3 {[%clk 0:02:57]}  h6 {[%clk 0:02:55]} 8. O-O {[%clk 0:02:57]}  d6 {[%clk 0:02:56]} 9. Be3 {[%clk 0:02:54]}  Be6 {[%clk 0:02:55]} 10. Bxe6 {[%clk 0:02:29]}  fxe6 {[%clk 0:02:56]} 11. d4 {[%clk 0:02:30]}  Kh7 {[%clk 0:02:46]} 12. dxe5 {[%clk 0:02:25]}  dxe5 {[%clk 0:02:47]} 13. Qe2 {[%clk 0:02:24]}  Nd4 {[%clk 0:02:44]} 14. Qd1 {[%clk 0:01:59]}  Nh5 {[%clk 0:02:34]} 15. Bxd4 {[%clk 0:01:38]}  exd4 {[%clk 0:02:35]} 16. Ne2 {[%clk 0:01:36]}  Rxf3 {[%clk 0:02:28]} 17. gxf3 {[%clk 0:01:36]}  Qh4 {[%clk 0:02:28]} 18. Kg2 {[%clk 0:01:33]}  Rf8 {[%clk 0:02:26]} 19. f4 {[%clk 0:01:14]}  Rxf4 {[%clk 0:02:13]} 20. Ng3 {[%clk 0:00:48]}  Qg5 {[%clk 0:02:00]} 21. Qd2 {[%clk 0:00:37]}  Be5 {[%clk 0:01:51]} 22. Rad1 {[%clk 0:00:29]}  c5 {[%clk 0:01:48]} 23. c3 {[%clk 0:00:27]}  Nf6 {[%clk 0:01:45]} 24. cxd4 {[%clk 0:00:27]}  Nxe4 {[%clk 0:01:40]} 25. Qd3 {[%clk 0:00:22]}  Bxd4 {[%clk 0:01:35]} 26. Qb3 {[%clk 0:00:17]}  b6 {[%clk 0:01:27]} 27. h4 {[%clk 0:00:05]}  Qg4 {[%clk 0:01:24]} 28. Rxd4 {[%clk 0:00:04]}  cxd4 {[%clk 0:01:22]} 29. Qd3 {[%clk 0:00:04]}  h5 {[%clk 0:01:16]} 30. Qc2 {[%clk 0:00:03]}  Qf3+ {[%clk 0:01:16]} 31. Kg1 {[%clk 0:00:03]}  Nxg3 {[%clk 0:01:16]} 32. Qc7+ {[%clk 0:00:03]}  Rf7 {[%clk 0:01:16]} 33. Qxg3 {[%clk 0:00:02]}  Qxg3+ {[%clk 0:01:14]} 34. fxg3 {[%clk 0:00:03]}  Rxf1+ {[%clk 0:01:14]} 35. Kxf1 {[%clk 0:00:04]}  g5 {[%clk 0:01:14]} 36. Ke2 {[%clk 0:00:04]}  gxh4 {[%clk 0:01:15]} 37. gxh4 {[%clk 0:00:05]}  Kg6 {[%clk 0:01:15]} 38. Kd3 {[%clk 0:00:05]}  e5 {[%clk 0:01:16]} 39. Ke4 {[%clk 0:00:06]}  Kf6 {[%clk 0:01:16]} 40. b3 {[%clk 0:00:07]}  Ke6 {[%clk 0:01:17]} 41. b4 {[%clk 0:00:07]}  b5 {[%clk 0:01:17]} 42. Kd3 {[%clk 0:00:07]}  Kd5 {[%clk 0:01:17]} 43. Kd2 {[%clk 0:00:07]}  e4 {[%clk 0:01:18]} 44. Kc2 {[%clk 0:00:08]}  Kc4 {[%clk 0:01:19]} 45. Kb2 {[%clk 0:00:07]}  e3 {[%clk 0:01:20]} 46. a4 {[%clk 0:00:08]}  e2 {[%clk 0:01:19]} 47. Kc2 {[%clk 0:00:07]}  e1=Q {[%clk 0:01:20]} 48. a5 {[%clk 0:00:08]}  d3+ {[%clk 0:01:20]} 49. Kb2 {[%clk 0:00:09]}  d2 {[%clk 0:01:20]} 50. Ka2 {[%clk 0:00:09]}  d1=Q {[%clk 0:01:20]} 51. Ka3 {[%clk 0:00:09]}  Qa1# {[%clk 0:01:19]} 0-1


[Site "https://www.chess.com"]